bitfinex-derivatives/quotes_BTCF0:USTF0_20241003
["timestamp","ask_amount","ask_price","bid_price","bid_amount"]
[1727958027156,0.19,60598.0,60597.0,0.443324]
[1727958028750,0.19,60598.0,60597.0,0.3608]
[1727958029062,0.273523,60598.0,60597.0,0.3608]
[1727958029752,0.273523,60598.0,60597.0,0.444324]
[1727958029753,0.192,60598.0,60597.0,0.444324]
[1727958029947,0.192,60598.0,60597.0,0.083524]
[1727958030645,0.22388304,60598.0,60597.0,0.083524]
[1727958030844,0.192,60598.0,60597.0,0.083524]
[1727958031250,0.192,60598.0,60597.0,0.001]
[1727958031558,0.3044056,60598.0,60597.0,0.001]
[1727958031758,0.3044056,60598.0,60597.0,0.083524]
[1727958031962,0.2053726,60598.0,60597.0,0.083524]
[1727958032150,0.19,60598.0,60597.0,0.083524]
[1727958032345,0.3608,60602.0,60597.0,0.083524]
[1727958032664,0.43327781,60607.0,60606.0,0.082512]
[1727958032849,0.34291496,60607.0,60606.0,0.082512]
[1727958033057,0.35805439,60607.0,60606.0,0.082512]
[1727958033246,0.2988322,60607.0,60606.0,0.082512]
[1727958033555,0.28106992,60607.0,60599.0,0.01651]
[1727958033757,0.19,60601.0,60600.0,0.08252]
[1727958033958,0.28106992,60601.0,60600.0,0.08252]
[1727958034462,0.2712307,60601.0,60600.0,1.17756]
[1727958034659,0.05918993,60610.0,60609.0,0.082508]
[1727958034860,0.00247558,60611.0,60610.0,0.082507]
[1727958035051,0.0591,60622.0,60610.0,0.082507]
[1727958035251,0.141591,60622.0,60619.0,0.082493]
[1727958035459,0.15712068,60622.0,60619.0,0.082493]
[1727958035647,0.07462968,60622.0,60609.0,0.78]
[1727958035847,0.01552968,60622.0,60621.0,0.082492]
[1727958036051,0.05918993,60624.0,60614.0,0.01651]
[1727958036253,0.18017605,60615.0,60614.0,0.099011]
[1727958036454,0.13103861,60619.0,60618.0,0.082496]
[1727958036661,0.27249,60623.0,60619.0,0.082493]
[1727958036957,0.27249,60623.0,60621.0,0.082491]
[1727958037156,0.27249,60623.0,60621.0,0.083491]
[1727958037545,0.19,60623.0,60621.0,0.001]
[1727958037746,0.08249,60622.0,60621.0,0.001]
[1727958038855,0.082498,60617.0,60614.0,0.01651]
[1727958039061,0.19,60615.0,60614.0,0.01651]
[1727958040057,0.19,60615.0,60614.0,0.01751]
[1727958040357,0.082498,60617.0,60614.0,0.101011]
[1727958040658,0.082499,60616.0,60614.0,0.01851]
[1727958040959,0.13314806,60615.0,60614.0,0.01851]
[1727958041162,0.08251,60608.0,60604.0,0.082514]
[1727958041351,0.19,60605.0,60601.0,0.00247517]
[1727958041550,0.19812984,60604.0,60601.0,0.59247517]
[1727958041752,0.14747587,60604.0,60603.0,0.082516]
[1727958041959,0.16296548,60604.0,60603.0,0.082516]
[1727958042161,0.03187803,60604.0,60603.0,0.082516]
[1727958042857,0.07229069,60604.0,60603.0,0.083516]
[1727958043164,0.07229069,60604.0,60603.0,0.084516]
[1727958044161,0.07229069,60604.0,60603.0,0.002]
[1727958044861,0.07229069,60604.0,60603.0,0.084516]
[1727958046859,0.07229069,60604.0,60603.0,1.179556]
[1727958047166,0.07229069,60604.0,60603.0,1.234656]
[1727958047360,0.03187803,60604.0,60603.0,1.234656]
[1727958047680,0.01536803,60604.0,60603.0,1.234656]
[1727958048466,0.082505,60611.0,60603.0,1.15214]
[1727958048667,0.082505,60611.0,60610.0,0.082507]
[1727958049570,0.082502,60614.0,60613.0,0.082502]
[1727958049773,0.082495,60619.0,60603.0,0.0561]
[1727958049774,0.082498,60617.0,60616.0,0.082497]
[1727958051368,0.0825,60615.0,60614.0,0.01651]
[1727958052564,0.0835,60615.0,60614.0,0.01751]
[1727958052971,0.0835,60615.0,60614.0,0.01851]
[1727958052972,0.4453,60615.0,60614.0,0.01851]
[1727958053172,0.4453,60615.0,60595.0,0.0607]
[1727958053173,0.082517,60602.0,60583.0,0.082543]
[1727958053374,0.19,60591.0,60585.0,0.0607]
[1727958053565,0.19,60591.0,60586.0,0.59]
[1727958054367,0.19,60595.0,60586.0,0.59]
[1727958054866,0.17349,60595.0,60586.0,0.59]
[1727958055067,0.5508,60589.0,60586.0,0.592]
[1727958055475,0.1503023,60588.0,60586.0,0.002]
[1727958055670,0.09109488,60587.0,60586.0,0.002]
[1727958055866,0.09109394,60587.0,60586.0,0.002]
[1727958056267,0.07457394,60587.0,60586.0,0.002]
[1727958056468,0.18020323,60587.0,60586.0,0.002]
[1727958056679,0.05066941,60587.0,60586.0,0.002]
[1727958056867,0.42320741,60587.0,60586.0,0.002]
[1727958057071,0.58689064,60587.0,60586.0,0.002]
[1727958057367,0.39987683,60587.0,60582.0,0.01652]
[1727958057572,0.446176,60589.0,60582.0,0.01652]
[1727958057573,0.29,60583.0,60582.0,0.01652]
[1727958057766,0.45511208,60583.0,60582.0,0.01652]
[1727958058570,0.63511543,60583.0,60582.0,0.01652]
[1727958058970,0.45611208,60583.0,60582.0,0.01752]
[1727958059570,0.45611208,60583.0,60582.0,0.01852]
[1727958059571,0.45811208,60583.0,60582.0,0.01852]
[1727958060568,0.51733067,60583.0,60582.0,0.01852]
[1727958061187,0.22733067,60583.0,60582.0,0.01852]
[1727958061371,0.16811208,60583.0,60582.0,0.01852]
[1727958061572,0.1833552,60583.0,60582.0,0.01852]
[1727958062275,0.34672208,60583.0,60582.0,0.01852]
[1727958062776,0.1833552,60583.0,60582.0,0.01852]
[1727958063575,0.10078612,60583.0,60582.0,0.01852]
[1727958063775,0.085543,60583.0,60582.0,0.01852]
[1727958066086,0.003,60583.0,60582.0,0.01852]
[1727958066387,0.082526,60596.0,60583.0,0.4952]
[1727958066684,0.082537,60588.0,60584.0,0.0566]
[1727958066875,0.082539,60587.0,60584.0,0.0566]
[1727958067076,0.082541,60585.0,60582.0,0.44996]
[1727958067387,0.372543,60583.0,60582.0,0.01852]
[1727958067692,0.372543,60583.0,60582.0,0.01752]
[1727958067987,0.372543,60583.0,60582.0,0.44752]
[1727958068486,0.372543,60583.0,60582.0,0.01752]
[1727958069372,0.372543,60583.0,60582.0,0.01652]
[1727958069577,0.372543,60583.0,60582.0,0.01752]
[1727958070178,0.373543,60583.0,60582.0,0.01852]
[1727958070577,0.40543483,60583.0,60582.0,0.01852]
[1727958072074,0.76623483,60583.0,60582.0,0.01852]
[1727958075681,0.66623483,60583.0,60582.0,0.01852]
[1727958076281,0.70666816,60583.0,60582.0,0.01852]
[1727958076986,0.75734939,60583.0,60582.0,0.01852]
[1727958078686,0.634343,60583.0,60582.0,0.01852]
[1727958084585,0.66623862,60583.0,60582.0,0.01852]
[1727958085703,0.7573541,60583.0,60582.0,0.01852]
[1727958085883,0.5673541,60583.0,60582.0,0.01852]
[1727958086083,0.92127558,60583.0,60582.0,0.01852]
[1727958086387,0.7573541,60583.0,60582.0,0.01852]
[1727958087886,0.7573541,60583.0,60572.0,0.00247569]
[1727958087887,0.082557,60573.0,60572.0,0.00247569]
[1727958088092,0.42012026,60573.0,60572.0,0.00247569]
[1727958088294,0.3955681,60573.0,60572.0,0.00247569]
[1727958088700,0.3130111,60573.0,60572.0,0.00247569]
[1727958088901,0.46055742,60573.0,60572.0,0.00247569]
[1727958089104,0.3130111,60573.0,60572.0,0.00447569]
[1727958089399,0.7573681,60573.0,60572.0,0.00447569]
[1727958089607,0.92132602,60573.0,60572.0,0.00447569]
[1727958090294,0.7573681,60573.0,60572.0,0.00447569]
[1727958091005,0.77233392,60573.0,60572.0,0.00447569]
[1727958091890,0.77233392,60573.0,60572.0,0.02099569]
[1727958092091,0.89586619,60573.0,60572.0,0.02099569]
[1727958092400,0.89586619,60573.0,60555.0,0.61643669]
[1727958092401,0.082574,60561.0,60557.0,0.082578]
[1727958092599,0.082574,60561.0,60556.0,0.0583]
[1727958092600,0.272576,60559.0,60556.0,0.0583]
[1727958092801,0.05582082,60558.0,60556.0,0.14088]
[1727958093100,0.05582082,60558.0,60557.0,0.512579]
[1727958093396,0.0153783,60558.0,60557.0,0.512579]
[1727958093602,0.19,60559.0,60558.0,0.082577]
[1727958094199,0.5508,60563.0,60558.0,0.014]
[1727958094400,0.5508,60563.0,60562.0,0.082572]
[1727958094791,0.5508,60563.0,60560.0,0.14848735]
[1727958094993,0.5508,60563.0,60560.0,0.06591335]
[1727958095201,0.082572,60562.0,60561.0,0.04943442]
[1727958095502,0.082575,60560.0,60559.0,0.04943442]
[1727958095704,0.082575,60560.0,60559.0,0.04942474]
[1727958095705,0.066055,60560.0,60559.0,0.04942474]
[1727958095892,0.1202,60561.0,60558.0,0.014]
[1727958096091,0.1202,60561.0,60558.0,0.026]
[1727958096092,0.083576,60559.0,60558.0,0.026]
[1727958096694,0.001,60560.0,60559.0,0.025]
[1727958096895,0.273575,60560.0,60559.0,0.025]
[1727958097290,0.273575,60560.0,60552.0,0.01653]
[1727958097291,0.082584,60553.0,60552.0,0.01653]
[1727958097499,0.19,60553.0,60545.0,0.04942474]
[1727958097699,0.272594,60546.0,60544.0,0.05190179]
[1727958097904,0.19,60546.0,60544.0,0.00247705]
[1727958098206,0.19,60546.0,60544.0,0.08507305]
[1727958099193,0.19,60546.0,60544.0,0.00247705]
[1727958099595,0.082595,60545.0,60544.0,0.01900705]
[1727958099801,0.143695,60545.0,60544.0,0.01653]
[1727958100002,0.143695,60545.0,60544.0,0.01753]
[1727958100399,0.143695,60545.0,60544.0,0.02853]
[1727958101001,0.144695,60545.0,60544.0,0.02853]
[1727958102300,1.88022,60545.0,60532.0,0.04942474]
[1727958102500,1.88022,60545.0,60531.0,0.00627786]
[1727958102501,0.082613,60532.0,60531.0,0.00247786]
[1727958102901,0.082613,60532.0,60520.0,0.04942474]
[1727958102902,1.942483,60532.0,60520.0,0.04942474]
[1727958103095,0.0588,60531.0,60517.0,0.10682474]
[1727958103293,0.19,60523.0,60522.0,0.082626]
[1727958103498,0.0588,60531.0,60527.0,0.08262]
[1727958103707,0.19,60528.0,60527.0,0.08262]
[1727958104205,0.55268,60532.0,60518.0,0.23942474]
[1727958104509,0.0038,60537.0,60534.0,0.01305108]
[1727958104697,0.36164,60541.0,60535.0,0.0574]
[1727958104698,0.19,60536.0,60535.0,0.0574]
[1727958105393,0.19,60536.0,60534.0,0.01305108]
[1727958106201,0.19,60540.0,60534.0,0.01305108]
[1727958106398,0.19,60540.0,60537.0,0.082605]
[1727958106599,0.19,60540.0,60534.0,0.01305108]
[1727958106802,0.003,60536.0,60534.0,0.01305108]
[1727958107004,0.003,60536.0,60535.0,0.512609]
[1727958107397,0.19,60540.0,60537.0,0.082606]
[1727958107600,0.197,60540.0,60539.0,0.082603]
[1727958109603,0.195,60540.0,60539.0,0.082603]
[1727958110307,0.203,60540.0,60539.0,0.082603]
[1727958110606,0.086388,60551.0,60539.0,1.09556]
[1727958110607,0.0038,60551.0,60539.0,1.09556]
[1727958110806,0.082585,60553.0,60550.0,0.082587]
[1727958111011,0.55164,60557.0,60550.0,0.095637]
[1727958111307,0.55164,60557.0,60551.0,0.43]
[1727958111308,0.55172,60557.0,60551.0,0.43]
[1727958111510,0.5508,60557.0,60551.0,0.43]
[1727958111808,0.082585,60553.0,60551.0,0.43]
[1727958112113,0.272585,60553.0,60551.0,0.43]
[1727958112298,0.3608,60557.0,60556.0,0.08258]
[1727958112707,0.19,60560.0,60556.0,0.08258]
[1727958112903,0.19,60557.0,60556.0,0.08258]
[1727958113905,0.204,60557.0,60556.0,0.08358]
[1727958114207,0.300579,60557.0,60556.0,0.002]
[1727958115006,0.297579,60557.0,60556.0,0.002]
[1727958115225,0.215,60557.0,60556.0,0.002]
[1727958115712,0.215,60557.0,60556.0,0.08458]
[1727958116605,0.216,60557.0,60556.0,0.08458]
[1727958117521,0.215,60557.0,60556.0,0.08458]
[1727958118012,0.201,60557.0,60556.0,0.08358]
[1727958118212,0.215,60557.0,60556.0,0.002]
[1727958118408,0.297579,60557.0,60556.0,0.002]
[1727958118813,0.215,60557.0,60556.0,0.002]
[1727958120101,0.215,60557.0,60556.0,0.08458]
[1727958120102,0.025,60557.0,60556.0,0.08458]
[1727958120514,0.025,60557.0,60556.0,0.08358]
[1727958120515,0.011,60557.0,60556.0,0.08358]
[1727958120711,0.025,60557.0,60556.0,0.08458]
[1727958120912,0.026,60557.0,60556.0,0.08458]
[1727958121208,0.298579,60557.0,60556.0,0.002]
[1727958123604,0.05790587,60557.0,60556.0,0.08458]
[1727958123816,0.05690587,60557.0,60556.0,1.17998]
[1727958124008,0.025,60557.0,60556.0,1.17998]
[1727958124206,0.025,60557.0,60556.0,1.54078]
[1727958124608,0.3608,60568.0,60556.0,1.4582]
[1727958124813,0.3608,60568.0,60566.0,0.272566]
[1727958124814,0.0188498,60567.0,60566.0,0.272566]
[1727958125006,0.0188498,60567.0,60566.0,0.082566]
[1727958125212,0.3608,60568.0,60567.0,0.082565]
[1727958125407,0.00247725,60570.0,60569.0,0.082562]
[1727958125918,0.00247725,60570.0,60567.0,0.873364]
[1727958126309,0.00247725,60570.0,60567.0,0.7908]
[1727958126616,0.00247725,60570.0,60568.0,0.082562]
[1727958127317,0.08503925,60570.0,60568.0,0.082562]
[1727958127525,0.00247725,60570.0,60567.0,0.7908]
[1727958127709,0.19,60571.0,60562.0,0.082571]
[1727958127912,0.272567,60566.0,60562.0,0.082571]
[1727958128309,0.272567,60566.0,60563.0,0.43]
[1727958128310,0.19,60566.0,60563.0,0.43]
[1727958128509,0.19,60564.0,60563.0,0.43]
[1727958128916,0.19,60564.0,60558.0,0.082576]
[1727958128917,0.066051,60563.0,60558.0,0.082576]
[1727958129217,0.124551,60563.0,60558.0,0.082576]
[1727958129419,0.0585,60563.0,60559.0,0.512576]
[1727958129603,0.2485,60563.0,60559.0,0.512576]
[1727958130514,0.082574,60561.0,60559.0,0.43]
[1727958130716,0.443375,60560.0,60559.0,0.43]
[1727958130919,0.443375,60560.0,60558.0,0.01752]
[1727958131211,0.19,60559.0,60558.0,0.01752]
[1727958131612,0.19,60559.0,60558.0,0.01652]
[1727958131812,0.005,60561.0,60559.0,0.082575]
[1727958132315,0.005,60561.0,60560.0,0.272575]
[1727958132517,0.3608,60566.0,60565.0,0.082568]
[1727958132816,0.3608,60566.0,60565.0,0.272568]
[1727958133206,0.3608,60566.0,60565.0,0.082568]
[1727958133806,0.3658,60566.0,60565.0,0.082568]
[1727958134015,0.005,60566.0,60565.0,0.082568]
[1727958134418,0.082558,60572.0,60568.0,0.082563]
[1727958134608,0.082562,60570.0,60569.0,0.082561]
[1727958135512,0.443358,60573.0,60571.0,0.082559]
[1727958135714,0.006,60572.0,60571.0,0.082559]
[1727958136611,0.006,60572.0,60568.0,0.001]
[1727958136810,0.082562,60569.0,60568.0,0.001]
[1727958137712,0.089561,60570.0,60569.0,0.001]
[1727958137912,0.279561,60570.0,60569.0,0.001]
[1727958138520,0.088562,60569.0,60568.0,0.002]
[1727958138916,0.006,60569.0,60558.0,0.37732]
[1727958139120,0.272576,60559.0,60558.0,0.01652]
[1727958140421,0.273576,60559.0,60558.0,0.01752]
[1727958141214,0.277576,60559.0,60558.0,0.01752]
[1727958141822,0.273576,60559.0,60558.0,0.01752]
[1727958142120,0.284576,60559.0,60558.0,0.01852]
[1727958142512,0.286576,60559.0,60558.0,0.01852]
[1727958142918,0.286576,60559.0,60551.0,0.443386]
[1727958142919,0.082584,60553.0,60551.0,0.3608]
[1727958143119,0.286576,60559.0,60551.0,0.3608]
[1727958143120,0.272586,60552.0,60551.0,0.3608]
[1727958144122,1.64624,60552.0,60547.0,0.01653]
[1727958144320,0.19,60548.0,60547.0,0.01653]
[1727958144717,0.082596,60545.0,60533.0,0.0038]
[1727958144918,0.082596,60545.0,60528.0,0.082618]
[1727958144919,0.19,60534.0,60528.0,0.082618]
[1727958145118,0.272611,60534.0,60528.0,0.082618]
[1727958145627,0.19,60534.0,60531.0,0.082614]
[1727958145930,0.07237645,60533.0,60527.0,0.138919]
[1727958146117,0.0319157,60532.0,60527.0,0.138919]
[1727958146313,0.272611,60534.0,60527.0,0.138919]
[1727958146314,0.0319157,60531.0,60530.0,0.082616]
[1727958146517,0.0319157,60533.0,60530.0,0.082616]
[1727958146729,0.19,60534.0,60530.0,0.082616]
[1727958146730,0.0319157,60532.0,60530.0,0.082616]
[1727958147034,0.19,60534.0,60530.0,0.082616]
[1727958147035,0.0319157,60531.0,60530.0,0.082616]
[1727958147323,0.19,60534.0,60527.0,0.0633]
[1727958147524,0.19,60534.0,60532.0,0.01653]
[1727958147930,0.191,60534.0,60532.0,0.01653]
[1727958148128,0.191,60534.0,60533.0,0.082611]
[1727958148129,0.001,60534.0,60533.0,0.082611]
[1727958148327,0.13108027,60540.0,60539.0,0.082603]
[1727958148626,0.19,60548.0,60540.0,0.082602]
[1727958148627,0.21367527,60546.0,60540.0,0.082602]
[1727958148832,0.1230518,60545.0,60540.0,0.082602]
[1727958149126,0.1230518,60545.0,60532.0,0.21193]
[1727958149127,0.082599,60543.0,60541.0,0.43]
[1727958149335,0.19,60544.0,60541.0,0.43]
[1727958149519,0.19,60544.0,60532.0,0.21053]
[1727958149520,0.082599,60542.0,60532.0,0.01653]
[1727958149720,0.19,60533.0,60532.0,0.01653]
[1727958150026,0.272611,60533.0,60532.0,0.01653]
[1727958150822,0.272611,60533.0,60532.0,0.01753]
[1727958152131,0.272611,60533.0,60532.0,0.02153]
[1727958152332,0.19,60533.0,60532.0,0.02153]
[1727958152523,0.082608,60536.0,60532.0,0.02153]
[1727958153737,0.082608,60536.0,60532.0,0.104142]
[1727958153934,0.082608,60536.0,60532.0,0.105142]
[1727958154824,0.082609,60535.0,60532.0,0.02253]
[1727958155026,0.19,60533.0,60532.0,0.02253]
[1727958155228,0.272611,60533.0,60532.0,0.02253]
[1727958155424,0.082626,60522.0,60521.0,0.3608]
[1727958155637,0.082629,60520.0,60519.0,0.00247843]
[1727958155945,0.082633,60517.0,60516.0,1.0014]
[1727958156233,0.272633,60517.0,60516.0,1.0]
[1727958156839,0.263633,60517.0,60516.0,1.0]
[1727958157639,0.352633,60517.0,60516.0,1.003]
[1727958157934,0.08265,60505.0,60504.0,0.0038]
[1727958158140,0.37265,60505.0,60495.0,0.3608]
[1727958158336,0.29,60505.0,60502.0,0.01654]
[1727958158526,0.29,60505.0,60503.0,0.34]
[1727958159334,0.291,60505.0,60504.0,0.008]
[1727958159927,0.082651,60504.0,60503.0,0.009]
[1727958160141,0.443451,60504.0,60503.0,0.009]
[1727958160327,0.082665,60495.0,60482.0,0.08268]
[1727958160534,0.082665,60495.0,60491.0,0.34]
[1727958160840,0.17434,60503.0,60491.0,0.34]
[1727958160841,0.29,60493.0,60491.0,0.34]
[1727958161238,0.47899851,60503.0,60491.0,0.34]
[1727958161435,0.082654,60502.0,60491.0,0.34]
[1727958161744,0.082654,60502.0,60491.0,0.343]
[1727958161745,0.001,60495.0,60491.0,0.343]
[1727958162239,0.082655,60501.0,60491.0,0.34]
[1727958162441,0.36743851,60503.0,60491.0,0.34]
[1727958162641,0.30649851,60503.0,60494.0,0.082664]
[1727958162847,0.30649851,60503.0,60495.0,0.0601]
[1727958163844,0.30549851,60503.0,60495.0,0.0601]
[1727958164041,0.30749851,60503.0,60495.0,0.0601]
[1727958164347,0.30749851,60503.0,60496.0,0.082662]
[1727958165146,0.002,60503.0,60500.0,0.082656]
[1727958165553,0.37602886,60504.0,60500.0,0.082656]
[1727958165751,0.002,60503.0,60500.0,0.082656]
[1727958166552,0.007,60503.0,60500.0,0.082656]
[1727958167448,0.01,60503.0,60500.0,0.082656]
[1727958168046,0.01,60503.0,60498.0,0.09919]
[1727958168247,0.01,60503.0,60499.0,0.082649]
[1727958168447,0.01,60503.0,60500.0,0.082647]
[1727958168964,0.37602886,60504.0,60500.0,0.082647]
[1727958169458,0.01522886,60504.0,60498.0,0.01654]
[1727958169648,0.444288,60507.0,60498.0,0.01654]
[1727958169850,0.443448,60507.0,60502.0,0.082645]
[1727958170050,0.006,60504.0,60502.0,0.082645]
[1727958170452,0.006,60504.0,60498.0,0.01654]
[1727958170757,0.006,60504.0,60503.0,0.082644]
[1727958171649,0.004,60504.0,60499.0,0.04942474]
[1727958171848,0.004,60504.0,60503.0,0.082644]
[1727958171849,0.005,60504.0,60503.0,0.082644]
[1727958172049,0.3608,60507.0,60498.0,0.01654]
[1727958172255,0.3608,60507.0,60506.0,0.08264]
[1727958173559,0.3708,60507.0,60506.0,0.08264]
[1727958174352,0.3778,60507.0,60506.0,0.08264]
[1727958176358,0.307,60507.0,60506.0,0.08264]
[1727958176559,0.307,60507.0,60498.0,0.099191]
[1727958176560,0.082646,60502.0,60498.0,0.01654]
[1727958176762,0.29,60499.0,60498.0,0.01654]
[1727958178158,0.37265,60499.0,60498.0,0.01654]
[1727958178553,0.37365,60499.0,60498.0,0.01654]
[1727958179154,0.73445,60499.0,60498.0,1e-08]
[1727958179354,0.73745,60499.0,60498.0,1e-08]
[1727958179653,0.082659,60492.0,60487.0,0.00247979]
[1727958179851,1.66622795,60499.0,60487.0,0.00247979]
[1727958179852,0.19,60488.0,60487.0,0.00247979]
[1727958180056,0.17346,60488.0,60487.0,0.00247979]
[1727958180257,0.066136,60480.0,60474.0,0.3608]
[1727958180459,0.19,60478.0,60474.0,0.3608]
[1727958180967,0.17345,60478.0,60474.0,0.3608]
[1727958181360,0.19,60475.0,60474.0,0.3608]
[1727958182469,0.17345,60475.0,60474.0,0.3608]
[1727958182764,0.272682,60475.0,60474.0,0.3608]
[1727958183265,0.28704238,60475.0,60474.0,0.3608]
[1727958183466,0.082684,60474.0,60472.0,0.01655]
[1727958183761,0.272685,60473.0,60472.0,0.01655]
[1727958184065,0.22302763,60473.0,60472.0,0.09851878]
[1727958184271,0.19,60473.0,60472.0,0.22456616]
[1727958184565,0.13206638,60473.0,60472.0,0.22456616]
[1727958184763,0.001,60475.0,60474.0,0.082684]
[1727958185068,0.001,60475.0,60474.0,0.39872639]
[1727958185255,0.001,60475.0,60474.0,0.35889702]
[1727958185458,0.19,60479.0,60474.0,0.61621302]
[1727958185665,0.19,60479.0,60478.0,0.09876169]
[1727958185972,0.19,60479.0,60478.0,0.22480408]
[1727958186468,0.19,60479.0,60478.0,0.12604239]
[1727958186761,0.191,60479.0,60478.0,0.12604239]
[1727958187072,0.192,60479.0,60478.0,0.12604239]
[1727958187455,0.5528,60479.0,60477.0,0.08228638]
[1727958187661,0.082678,60478.0,60477.0,0.06583092]
[1727958187962,0.082678,60478.0,60477.0,0.04937791]
[1727958188167,0.5528,60479.0,60476.0,0.04937791]
[1727958188364,0.27268,60477.0,60476.0,0.04937791]
[1727958188668,0.19,60477.0,60475.0,0.04937791]
[1727958188861,0.27268,60477.0,60476.0,0.04937791]
[1727958189057,0.082683,60475.0,60474.0,0.06583092]
[1727958189263,0.082684,60474.0,60473.0,0.06583092]
[1727958189461,0.272684,60474.0,60473.0,0.06583092]
[1727958189762,0.49608,60473.0,60472.0,0.07669864]
[1727958189958,0.082687,60472.0,60471.0,0.04934268]
[1727958190178,0.19,60472.0,60460.0,0.08228638]
[1727958190363,0.19,60464.0,60459.0,0.09883638]
[1727958190565,0.19,60460.0,60459.0,0.09883638]
[1727958190968,0.19,60460.0,60459.0,0.01655]
[1727958192474,0.19,60464.0,60459.0,0.099253]
[1727958192775,0.19,60464.0,60461.0,0.082701]
[1727958192972,0.19,60468.0,60459.0,0.01655]
[1727958193162,0.002,60472.0,60471.0,0.082688]
[1727958193363,0.0024813,60473.0,60472.0,0.097237]
[1727958193561,0.0024813,60473.0,60472.0,0.154937]
[1727958193764,0.0038,60485.0,60472.0,1.92883]
[1727958193970,0.19,60490.0,60483.0,0.08267]
[1727958194160,0.09770696,60488.0,60484.0,0.059]
[1727958194874,0.09770696,60488.0,60484.0,0.141669]
[1727958195171,0.443452,60498.0,60493.0,0.082658]
[1727958195373,0.36164,60498.0,60493.0,0.082658]
[1727958195569,0.6508,60498.0,60489.0,0.082663]
[1727958195767,0.65168,60498.0,60489.0,0.082663]
[1727958195967,0.082656,60495.0,60490.0,0.082662]
[1727958196169,0.082656,60495.0,60487.0,0.0555]
[1727958196170,0.66710938,60498.0,60492.0,0.082659]
[1727958197061,0.66710938,60498.0,60487.0,0.0555]
[1727958197062,0.0244804,60494.0,60493.0,0.082658]
[1727958197673,0.3646,60506.0,60493.0,0.082658]
[1727958197674,0.3646,60506.0,60504.0,0.082643]
[1727958197873,0.3608,60506.0,60504.0,0.082643]
[1727958198970,0.3608,60506.0,60504.0,0.082642]
[1727958199174,0.082636,60509.0,60504.0,0.082642]
[1727958199370,0.29,60512.0,60502.0,0.01455]
[1727958199573,0.29,60507.0,60504.0,0.082642]
[1727958199875,0.008,60506.0,60504.0,0.001]
[1727958200481,0.009,60506.0,60504.0,0.001]
[1727958200679,0.009,60506.0,60505.0,0.082641]
[1727958201175,0.005,60506.0,60504.0,0.001]
[1727958201582,0.005,60506.0,60505.0,0.082641]
[1727958202172,0.005,60506.0,60505.0,0.083641]
[1727958202378,0.011,60506.0,60505.0,0.083641]
[1727958202777,0.01939952,60517.0,60505.0,0.083641]
[1727958202985,0.36164,60519.0,60517.0,0.082625]
[1727958203285,0.36164,60519.0,60508.0,0.29]
[1727958203286,0.3608,60519.0,60508.0,0.29]
[1727958203473,0.3608,60519.0,60513.0,0.08263]
[1727958203681,0.3608,60519.0,60506.0,0.08264]
[1727958203877,0.3608,60519.0,60505.0,0.001]
[1727958203878,0.006,60517.0,60505.0,0.001]
[1727958204177,0.006,60517.0,60503.0,0.40857924]
[1727958204178,0.006,60517.0,60515.0,0.082626]
[1727958204776,0.006,60517.0,60516.0,0.082626]
[1727958205592,0.014,60517.0,60516.0,0.082626]
[1727958205789,0.304,60517.0,60515.0,0.001]
[1727958206487,0.019,60517.0,60516.0,0.082626]
[1727958206686,0.019,60517.0,60516.0,0.097176]
[1727958207085,0.00247991,60520.0,60516.0,0.01455]
[1727958207385,0.00247991,60520.0,60519.0,0.082622]
[1727958207591,0.0038,60532.0,60519.0,0.082622]
[1727958207896,0.29,60536.0,60519.0,0.0563]
[1727958208191,0.082603,60534.0,60519.0,0.0563]
[1727958208381,0.082603,60534.0,60528.0,0.082609]
[1727958208583,0.30537264,60536.0,60528.0,0.082609]
[1727958208890,0.082605,60532.0,60528.0,0.082609]
[1727958209197,0.082605,60532.0,60520.0,0.34]
[1727958209198,0.30537264,60536.0,60520.0,0.34]
[1727958209490,0.082604,60533.0,60520.0,0.34]
[1727958210089,0.082604,60533.0,60528.0,0.001]
[1727958210287,0.082604,60533.0,60530.0,0.082607]
[1727958210883,0.094604,60533.0,60530.0,0.082607]
[1727958211083,0.012,60533.0,60528.0,0.001]
[1727958211284,0.082605,60532.0,60528.0,0.001]
[1727958211483,0.082605,60532.0,60530.0,0.001]
[1727958211691,0.012,60533.0,60530.0,0.001]
[1727958211990,0.023,60533.0,60531.0,0.082606]
[1727958213194,0.023,60533.0,60530.0,0.002]
[1727958213195,0.011,60532.0,60530.0,0.002]
[1727958213395,0.372606,60531.0,60530.0,0.002]
[1727958214795,0.302,60531.0,60530.0,0.002]
[1727958215091,0.302,60531.0,60530.0,0.001]
[1727958215294,0.384606,60531.0,60530.0,0.001]
[1727958215789,0.012,60531.0,60530.0,0.083607]
[1727958215995,0.023,60531.0,60530.0,0.084607]
[1727958221092,0.09538036,60531.0,60530.0,0.084607]
[1727958221288,0.17798636,60531.0,60530.0,0.002]
[1727958221599,0.28538036,60531.0,60530.0,0.084607]
[1727958222300,0.28538036,60531.0,60530.0,0.002]
[1727958222494,0.09538036,60531.0,60530.0,0.084607]
[1727958222896,0.04036742,60531.0,60530.0,0.274607]
[1727958223400,0.08082675,60531.0,60530.0,0.274607]
[1727958224294,0.08082675,60531.0,60530.0,0.332507]
[1727958224295,0.21076991,60531.0,60530.0,0.332507]